Cogmind - Beta 13 @@@ ROGUE MODE // 2024.04.07 @ 04:16:00 Player: SnowyImp Result: Destroyed by G-47 Trooper with Particle Gun Performance ------------- Evolutions (1) 500 Regions Visited (6) 1200 Robots Destroyed (23) 115 Value Destroyed (569) 569 Prototype IDs (3) 60 Alien Tech Used (0) 0 Bonus (528) 528 TOTAL SCORE: 2972 Bonus ------- Pacifist 200 High Alert Combat Kills 28 Aligned with FarCom 300 Cogmind --------- Core Integrity 0/400 Matter 280/300 Energy 100/100 System Corruption 4% Temperature Cool (9) Movement Flying (40) Location -8/Mines Parts ------- > --- POWER (1) -------- (None) > --- PROPULSION (4) --- Improved Flight Unit > --- UTILITY (2) ------ (None) > --- WEAPON (2) ------- Mining Laser > --- INVENTORY (5) ---- Light Deuterium Engine Light Treads Medium Treads Cloak of Protection Great Axe Peak State ------------ > --- POWER ------------ Light Deuterium Engine > --- PROPULSION ------- Improved Hover Unit Improved Hover Unit Improved Hover Unit > --- UTILITY ---------- Heat Sink Light Armor Plating > --- WEAPON ----------- Field Laser Field Laser > --- INVENTORY -------- Light Deuterium Engine Advanced Weight Redist. System Field Laser Field Laser [Rating: 18] Favorites ----------- Power Light Deuterium Engine Engine Light Deuterium Engine Propulsion Improved Hover Unit Treads Light Treads Leg Aluminum Leg Wheel Compact Wheel Hover Unit Improved Hover Unit Flight Unit Improved Flight Unit Utility Light Armor Plating Device Heat Sink Storage Small Storage Unit Protection Light Armor Plating Weapon Field Laser Energy Gun Field Laser Ballistic Gun Assault Rifle Special Weapon Mining Laser Slashing Weapon Great Axe Build | -11 -10 -10 -9 -9 -9 -8 ------- Run | Yrd Mat Min Mat Min Exi Min Slots Evolved 2 | . . . 2 . . . Power . | . . . . . . . Propulsion 2 | . . . 2 . . . Utility . | . . . . . . . Weapon . | . . . . . . . Parts Attached 32 | 4 . . 21 5 2 . Power 5 | 1 . . 4 . . . Engine 5 | 1 . . 4 . . . Core . | . . . . . . . Reactor . | . . . . . . . Propulsion 12 | 2 . . 10 . . . Treads 2 | . . . 2 . . . Leg 3 | 2 . . 1 . . . Wheel 1 | . . . 1 . . . Hover 4 | . . . 4 . . . Flight 2 | . . . 2 . . . Utility 7 | . . . 4 1 2 . Device 3 | . . . 2 . 1 . Storage 1 | . . . . . 1 . Processor . | . . . . . . . Hackware . | . . . . . . . Protection 3 | . . . 2 1 . . Artifact . | . . . . . . . Weapon 8 | 1 . . 3 4 . . Energy Gun 5 | . . . 3 2 . . Energy Cannon . | . . . . . . . Ballistic Gun 1 | 1 . . . . . . Ballistic Cannon . | . . . . . . . Launcher . | . . . . . . . Special Weapon 1 | . . . . 1 . . Impact Weapon . | . . . . . . . Slashing Weapon 1 | . . . . 1 . . Piercing Weapon . | . . . . . . . Special Melee Weapon . | . . . . . . . Unidentified Prototypes 3 | . . . 2 . 1 . Parts Lost 15 | . . . 11 4 . . Power 2 | . . . 2 . . . Propulsion 5 | . . . 4 1 . . Utility 3 | . . . 2 1 . . Weapon 5 | . . . 3 2 . . Highest Loss Streak 4 | . . . 4 3 . . To Critical Strikes 1 | . . . . 1 . . Average Slot Usage (%) 53 | . 57 57 64 35 27 . Engine 7 | . 14 14 10 . . . Treads 1 | . . . 2 . . . Leg 7 | . 28 28 9 . . . Hover 8 | . . . 13 . . . Flight 5 | . . . 2 12 11 . Device 3 | . . . 2 5 . . Protection 3 | . . . 4 1 . . Energy Gun 12 | . . . 15 10 . . Ballistic Gun 2 | . 14 14 2 . . . Slashing Weapon 1 | . . . . 4 5 . Naked Turns . | . . . . . . . Heaviest Build 15 | 7 7 7 15 10 5 1 Greatest Support 33 | 20 20 20 33 9 5 5 Greatest Overweight (x) 2 | . . . 2 1 . . Average Overweight (x) . | . . . . . . . Largest Inventory Capacity 8 | 5 5 5 5 5 8 5 Average Capacity 5 | 5 5 5 5 5 5 5 Most Carried 5 | 2 2 2 5 5 5 5 Average Carried 3 | 1 2 2 3 3 4 5 Final Capacity 5 | 5 5 5 5 5 5 5 Final Carried 5 | 2 2 2 4 5 5 5 Class Distribution -------------------- 100% | Mutant Dominant Class ---------------- Mutant | -10/Materials Mutant | -10/Mines Mutant | -9/Materials Mutant | -9/Mines Mutant | -9/Exiles Mutant | -8/Mines Resources | -11 -10 -10 -9 -9 -9 -8 ----------- Run | Yrd Mat Min Mat Min Exi Min Matter Collected 506 | 146 . . 276 84 . . Remotely . | . . . . . . . Salvage Created 819 | . . . 797 22 . . Parts 55 | . . . 53 2 . . Haulers Intercepted 1 | . . . 1 . . . Recyclers Shooed 1 | . . . 1 . . . Parts Field Recycled . | . . . . . . . Retrieved Matter . | . . . . . . . Parts Self-Destructed . | . . . . . . . Prevented . | . . . . . . . Kills | -11 -10 -10 -9 -9 -9 -8 ------- Run | Yrd Mat Min Mat Min Exi Min Combat Hostiles Destroyed 23 | . . . 20 3 . . Melee 1 | . . . . 1 . . Guns 21 | . . . 19 2 . . Classes Destroyed 8 | . . . 6 2 . . Worker 1 | . . . . 1 . . Hauler 1 | . . . 1 . . . Recycler 1 | . . . 1 . . . Swarmer 7 | . . . 7 . . . Grunt 9 | . . . 9 . . . Brawler 1 | . . . 1 . . . Sentry 3 | . . . 3 . . . Assembled 3 | . . . . 3 . . Best Kill Streak 5 | . . . 5 2 . . Combat Bots Only 5 | . . . 5 2 . . Max Kills in Single Turn 2 | . . . 2 1 . . Gunslinging 1 | . . . 1 . . . Exploded . | . . . . . . . Melee 1 | . . . . 1 . . Uniques/NPCs Destroyed . | . . . . . . . Combat | -11 -10 -10 -9 -9 -9 -8 -------- Run | Yrd Mat Min Mat Min Exi Min Hostile Shots Fired 186 | . 6 . 137 42 . 1 Missed 53 | . 2 . 33 18 . . Damage Taken 1641 | . 56 . 1224 345 . 16 Core 436 | . 27 . 228 165 . 16 Absorbed by Shields . | . . . . . . . Core Remaining (%) 94 | 100 . 89 . . . . Volleys Fired 61 | . . . 53 8 . . Largest 2 | . . . 2 2 . . Hottest 126 | . . . 126 126 . . Shots Fired 104 | . . . 89 15 . . Gun 104 | . . . 89 15 . . Cannon . | . . . . . . . Launcher . | . . . . . . . Special . | . . . . . . . Kinetic 17 | . . . 17 . . . Thermal 87 | . . . 72 15 . . Explosive . | . . . . . . . Electromagnetic . | . . . . . . . Robot Hit Streak 14 | . . . 14 3 . . Robot Miss Streak 6 | . . . 4 6 . . Penetration Max . | . . . . . . . Secondary Targets 3 | . . . 2 1 . . Max Gunslinging Chain 1 | . . . 1 1 . . Shots Hit Robots 65 | . . . 60 5 . . Core Hits 31 | . . . 27 4 . . Critical Kills . | . . . . . . . Critical Parts Destroyed . | . . . . . . . Critical Strikes 6 | . . . 5 1 . . Burn 6 | . . . 5 1 . . Melee Attacks 6 | . . . . 6 . . Impact . | . . . . . . . Slashing 6 | . . . . 6 . . Piercing . | . . . . . . . Sneak Attacks . | . . . . . . . Combat Hostiles . | . . . . . . . Follow-up Attacks . | . . . . . . . Damage Inflicted 1217 | . . . 1053 164 . . Guns 1106 | . . . 1005 101 . . Cannons . | . . . . . . . Explosions . | . . . . . . . Melee 63 | . . . . 63 . . Ramming 48 | . . . 48 . . . Kinetic 135 | . . . 135 . . . Thermal 971 | . . . 870 101 . . Explosive . | . . . . . . . Electromagnetic . | . . . . . . . Impact . | . . . . . . . Slashing 63 | . . . . 63 . . Piercing . | . . . . . . . Highest Corruption 4 | . . . 4 4 4 4 Average Corruption 3 | . . . 3 4 4 4 Corruption Purged . | . . . . . . . Corruption Blocked . | . . . . . . . Effects 14 | . . . 6 8 . . Message Errors 6 | . . . 1 5 . . Matter Fused 3 | . . . 2 1 . . Energy Discharges 1 | . . . 1 . . . Parts Rejected 2 | . . . 1 1 . . Data Loss (minor) 1 | . . . . 1 . . Data Loss (major) 1 | . . . 1 . . . Overload Shots . | . . . . . . . Overflow Damage 35 | . . . . 35 . . Projectiles . | . . . . . . . Explosions . | . . . . . . . Melee 35 | . . . . 35 . . Knockbacks . | . . . . . . . Impact . | . . . . . . . Kinetic . | . . . . . . . Secondary . | . . . . . . . Self-Inflicted Damage 19 | . . . 19 . . . Shots . | . . . . . . . Rammed 8 | . . . 8 . . . Targets Rammed 9 | . . . 9 . . . Kicked 1 | . . . 1 . . . Crushed . | . . . . . . . Highest Temperature 443 | . . . 443 68 . . Average Temperature 125 | . . . 136 30 . . Received Heat Transfer 582 | . 30 . 345 198 . 9 Effects 2 | . . . 2 . . . Shutdowns 1 | . . . 1 . . . Energy Bleed 1 | . . . 1 . . . Siege Activations . | . . . . . . . Robots Corrupted . | . . . . . . . Combat Hostiles . | . . . . . . . Parts Fried . | . . . . . . . Impact Corruptions . | . . . . . . . Robots Melted 1 | . . . 1 . . . Combat Hostiles 1 | . . . 1 . . . Parts Melted 5 | . . . 5 . . . Heat Transferred 2553 | . . . 2257 296 . . Parts Sabotaged . | . . . . . . . Parts Stolen . | . . . . . . . Parts Stripped . | . . . . . . . Power Chain Reactions . | . . . . . . . Alert | -11 -10 -10 -9 -9 -9 -8 ------- Run | Yrd Mat Min Mat Min Exi Min Peak Influence 508 | . 5 1 508 166 . . Initial 141 | . . 1 . 141 . . Average 162 | . 3 1 192 154 . . Maximum Alert Level 2 | . . . 2 . . . Low Security (%) 77 | 100 100 100 63 100 . 100 Level 1 8 | . . . 14 . . . Level 2 13 | . . . 22 . . . Level 3 . | . . . . . . . Level 4 . | . . . . . . . Level 5 . | . . . . . . . High Security . | . . . . . . . Max Security . | . . . . . . . Squads Dispatched 4 | . . . 4 . . . Investigation 3 | . . . 3 . . . Extermination . | . . . . . . . Reinforcement 1 | . . . 1 . . . Assault . | . . . . . . . Garrison . | . . . . . . . Intercept . | . . . . . . . Searches Triggered . | . . . . . . . Construction Impeded . | . . . . . . . Haulers Reinforced . | . . . . . . . Active Scanning Responses . | . . . . . . . Cargo Convoy Interrupts . | . . . . . . . Stealth | -11 -10 -10 -9 -9 -9 -8 --------- Run | Yrd Mat Min Mat Min Exi Min Distress Signals 3 | . . . 2 1 . . Communications Jammed . | . . . . . . . Distress Signals . | . . . . . . . Times Spotted 65 | . 2 . 37 23 . 3 Peak Tracking Total 24 | . 2 . 8 24 . 3 Tactical Retreats 13 | . . . 4 9 . . Traps | -11 -10 -10 -9 -9 -9 -8 ------- Run | Yrd Mat Min Mat Min Exi Min Traps Triggered . | . . . . . . . Indirectly . | . . . . . . . Trap Hack Attempts . | . . . . . . . Triggered . | . . . . . . . Disarmed . | . . . . . . . Reprogrammed . | . . . . . . . Reused . | . . . . . . . Traps Extracted . | . . . . . . . Installed . | . . . . . . . Triggered . | . . . . . . . Machines | -11 -10 -10 -9 -9 -9 -8 ---------- Run | Yrd Mat Min Mat Min Exi Min Machines Disabled . | . . . . . . . Max in Single Turn . | . . . . . . . Machines Repaired . | . . . . . . . Machines Dismantled . | . . . . . . . Machines Sabotaged . | . . . . . . . Overloaded Fab Kills . | . . . . . . . Hacking | -11 -10 -10 -9 -9 -9 -8 --------- Run | Yrd Mat Min Mat Min Exi Min Machines Accessed 8 | . 2 . 5 1 . . Terminals 6 | . 2 . 4 . . . Fabricators . | . . . . . . . Repair Stations . | . . . . . . . Recycling Units . | . . . . . . . Scanalyzers 1 | . . . 1 . . . Garrison Access . | . . . . . . . Total Hacks 25 | . 5 . 19 1 . . Successful 14 | . 2 . 11 1 . . Failed 11 | . 3 . 8 . . . Catastrophic 3 | . . . 3 . . . Database Lockouts . | . . . . . . . Manual 16 | . 5 . 10 . 1 . Terminals 16 | . 5 . 11 . . . Fabricators . | . . . . . . . Repair Stations . | . . . . . . . Recycling Units . | . . . . . . . Scanalyzers 8 | . . . 8 . . . Garrison Access . | . . . . . . . Terminal Hacks 3 | . . . 2 1 . . Record 1 | . . . 1 . . . Open Door 1 | . . . . 1 . . Branch Access Points 1 | . . . 1 . . . Fabricator Hacks . | . . . . . . . Repair Station Hacks . | . . . . . . . Recycling Unit Hacks . | . . . . . . . Scanalyzer 8 | . . . 8 . . . Insert Component 4 | . . . 4 . . . Analyze 4 | . . . 4 . . . Garrison Access Hacks . | . . . . . . . Unauthorized Hacks 3 | . 2 . 1 . . . Terminals 3 | . 2 . 1 . . . Botnet 3 | . 2 . 1 . . . Fabricators . | . . . . . . . Repair Stations . | . . . . . . . Recycling Units . | . . . . . . . Scanalyzers . | . . . . . . . Garrison Access . | . . . . . . . Data Cores Recovered . | . . . . . . . Used . | . . . . . . . Hacking Detections 6 | . 2 . 4 . . . Full Trace Events 3 | . . . 3 . . . Feedback Events . | . . . . . . . Feedback Blocked . | . . . . . . . Robot Schematics Acquired . | . . . . . . . Robots Built . | . . . . . . . Authchips . | . . . . . . . Time . | . . . . . . . Total Robot Build Rating . | . . . . . . . Part Schematics Acquired 4 | . . . 4 . . . Parts Built . | . . . . . . . Authchips . | . . . . . . . Time . | . . . . . . . Total Part Build Rating . | . . . . . . . Parts Repaired . | . . . . . . . Time . | . . . . . . . Parts Recycled . | . . . . . . . Recycled Matter . | . . . . . . . Retrieved Matter . | . . . . . . . Retrieved Components . | . . . . . . . Parts Scanalyzed 4 | . . . 4 . . . Part Schematics Acquired 4 | . . . 4 . . . Parts Damaged 1 | . . . 1 . . . Bothacking | -11 -10 -10 -9 -9 -9 -8 ------------ Run | Yrd Mat Min Mat Min Exi Min Used RIF Installer . | . . . . . . . Robots Hacked . | . . . . . . . Non-combat . | . . . . . . . Combat . | . . . . . . . Robot Hacks Applied . | . . . . . . . Relay Couplers Released . | . . . . . . . Fabnet Peak Effective % . | . . . . . . . Robots Rewired . | . . . . . . . Allies Hacked . | . . . . . . . Hacks Repelled . | . . . . . . . Allies | -11 -10 -10 -9 -9 -9 -8 -------- Run | Yrd Mat Min Mat Min Exi Min Total Allies 1 | . . . . 1 . . Largest Group 1 | . . . . 1 . . Highest-Rated Group 31 | . . . . 31 . . Highest-Rated Ally 31 | . . . . 31 . . Total Orders . | . . . . . . . Ally Attacks 5 | . . . . 5 . . Total Damage 20 | . . . . 20 . . Kills . | . . . . . . . Allies Corrupted . | . . . . . . . Allies Melted . | . . . . . . . Intel | -11 -10 -10 -9 -9 -9 -8 ------- Run | Yrd Mat Min Mat Min Exi Min Robot Analysis Total . | . . . . . . . Derelict Logs Recovered 2 | . . . . 2 . . Drone Launches . | . . . . . . . Drone Recoveries . | . . . . . . . Exploration | -11 -10 -10 -9 -9 -9 -8 ------------- Run | Yrd Mat Min Mat Min Exi Min Turns Passed 1394 | 58 65 6 814 353 97 1 Spaces Moved 1473 | 44 55 6 609 534 224 1 Core 6 | 3 . . 3 . . . Treads 94 | . . . 94 . . . Legs 253 | 41 55 6 151 . . . Wheels 20 | . . . 20 . . . Hover 316 | . . . 316 . . . Flight 784 | . . . 25 534 224 1 Fastest Speed 34 | 50 120 120 34 34 40 40 Average Speed 70 | 115 120 120 86 54 40 40 Slowest Speed 160 | 120 120 120 160 110 40 40 Overloaded Moves . | . . . . . . . Propulsion Burnouts . | . . . . . . . Robots Hopped 3 | . . . . 3 . . Cave-ins Triggered . | . . . . . . . Exploration Rate (%) 33 | 4 21 5 43 96 59 3 Regions Visited 6 Branch Regions 4 Pre-discovered Areas 1 | . . . . 1 . . Known Exits Taken 1 | . . . 1 . . . Unknown Exits Taken 5 | 1 1 1 . 1 1 . Scrap Searched 2 | . . . . 2 . . Spaces Dug . | . . . . . . . Terrain Destroyed . | . . . . . . . Melee . | . . . . . . . Projectile . | . . . . . . . AOE . | . . . . . . . Terrain Rammed . | . . . . . . . Walls Destroyed . | . . . . . . . Machines Disabled . | . . . . . . . Actions | -11 -10 -10 -9 -9 -9 -8 --------- Run | Yrd Mat Min Mat Min Exi Min Total 1705 | 49 54 5 798 566 232 1 Wait 100 | . . . 91 9 . . Move 1462 | 43 54 5 608 528 223 1 Hop 2 | . . . . 2 . . Pick Up 13 | 2 . . 6 4 1 . Fast Attach 28 | 4 . . 18 4 2 . Attach 4 | . . . 3 1 . . Detach 3 | . . . 1 . 2 . Swap . | . . . . . . . Drop 17 | . . . 9 4 4 . Fire 61 | . . . 53 8 . . Melee 6 | . . . . 6 . . Ram 6 | . . . 6 . . . Kick 1 | . . . 1 . . . Crush 2 | . . . 2 . . . Escape Stasis . | . . . . . . . Rewire . | . . . . . . . Trap . | . . . . . . . Miscellaneous . | . . . . . . . Route ------- -11/Scrapyard -10/Materials -10/Mines -9/Materials (discovered 2 exits: [*Mat] / *Min) -9/Mines (discovered 3 exits: [*Mat x2] / *Exi) -9/Exiles -8/Mines History --------- Turn | Location | Event 4 | -11/Scrapyard | Discovered new exit (range 15) 59 | -11/Scrapyard | Entered Materials 104 | -10/Materials | Discovered new exit (range 13) 124 | -10/Materials | Entered Mines 124 | -10/Mines | Discovered new exit (range 6) 130 | -10/Mines | Entered Materials 130 | -9/Materials | Evolved 2 slots: Propulsion x2 308 | -9/Materials | Build established: Mutant 355 | -9/Materials | Lost 4 parts (1p2n1w) 684 | -9/Materials | Discovered new exit (range 3) 786 | -9/Materials | Lost 3 parts (1n2u) 804 | -9/Materials | Identified exit to Mines 901 | -9/Materials | Core integrity fell below 50% 944 | -9/Materials | Entered Mines 953 | -9/Mines | Learned location of Zion (-6) 956 | -9/Mines | Lost 3 parts (1p2w) 983 | -9/Mines | Assembled infested the area 1139 | -9/Mines | Learned Materials machine intel 1153 | -9/Mines | Discovered new exit (range 6) 1155 | -9/Mines | Met a Derelict who couldn't figure out how to use a Trap Extractor 1162 | -9/Mines | Lost 3 parts (1u2w) 1195 | -9/Mines | Core integrity fell below 20% 1277 | -9/Mines | Discovered new exit (range 10) 1282 | -9/Mines | Received a Mining Laser from a helpful Derelict 1296 | -9/Mines | Deemed a non-threat by the Exiles lab entrance 1296 | -9/Mines | Discovered new exit (range 5) 1297 | -9/Mines | Entered Exiles 1307 | -9/Exiles | Met 8R-AWN 1314 | -9/Exiles | Met EX-HEX 1325 | -9/Exiles | Met EX-BIN 1330 | -9/Exiles | Aligned with FarCom system 1330 | -9/Exiles | Given EX-Vault access code 1339 | -9/Exiles | Opened EX-Vault 1342 | -9/Exiles | Found Prototype Device 1342 | -9/Exiles | Identified Cloak of Protection 1355 | -9/Exiles | Warned to stay clear of 0b10 Research branches 1367 | -9/Exiles | Met EX-DEC 1391 | -9/Exiles | Discovered new exit (range 10) 1394 | -9/Exiles | Left Exiles lab with Cloak of Protection 1394 | -9/Exiles | Entered Mines 1395 | -8/Mines | Destroyed by G-47 Trooper with Particle Gun Last Messages --------------- 01345_ Acquired Med. Treads. 01346_ Dropped Hvy. Ion Cannon. EX-BIN: Oh yeah, I'd suggest you stay away from the 0b10 Research branches, since the FarCom signals could be picked up there, but you're welcome to try if you really want to. And if we have to leave here due to unforeseen circumstances, don't worry the FarCom system will continue to maintain contact via our distributed network. EX-DEC: Ah I see we have a visitor. One wrong move in here and I'll invert your atomic chain! 01382_ Acquired Unknown Storage. 01382_ Identified Sml. Storage Unit. 01384_ Dropped Sml. Storage Unit. 01391_ EXIT=FOUND LOCATION=UNKNOWN GOAL=ESCAPE 01394_ Receiving FarCom transmissions... Map ----- +----------------------------------------------------+ | | | | | | | | | | | | | | | | | | | | | | | | | | | | | | | ?????????????????????????????????? | | ?????????????????????????????????? | | ?????????????????????????????????? | | ?????????###?????????????????????? | | ????????# ##????????????????????? | | ???????? ####?????????????????? | | ???????? g #?????????????????? | | ????????# g #?????????????????? | | ???????##l #??????????????????? | | ????#### #???????????????????? | | ????# @ #????????????????????? | | ???# ##????????????????????? | | ???# ## #?????????????????????? | | ???## #?? #?????????????????????? | | ????###??? #?????????????????????? | | ?????????? #?????????????????????? | | ???????????#?????????????????????? | | ?????????????????????????????????? | | ?????????????????????????????????? | | ?????????????????????????????????? | | ?????????????????????????????????? | | ?????????????????????????????????? | | ?????????????????????????????????? | | ?????????????????????????????????? | | ?????????????????????????????????? | | ?????????????????????????????????? | | ?????????????????????????????????? | | ?????????????????????????????????? | | ?????????????????????????????????? | | ?????????????????????????????????? | | ?????????????????????????????????? | | ?????????????????????????????????? | | ?????????????????????????????????? | | ?????????????????????????????????? | | ?????????????????????????????????? | +----------------------------------------------------+ Best States ------------- Heat Dissipation 38 Energy Generation 14 Energy Capacity 250 Matter Stores 300 Matter Capacity 300 Sight Range 16 Terrain Scan Density 10 Armor Coverage 150 Evasion (%) 63 Recoil Reduction 1 Item Schematics ----------------- Adv. Weight Redist. System | -9/Materials | Scanalyzed Imp. Hover Unit | -9/Materials | Scanalyzed Field Laser | -9/Materials | Scanalyzed Lgt. Deuterium Engine | -9/Materials | Scanalyzed Robot Schematics ------------------ None Fabricated ------------ Nothing Alien Tech Used ----------------- None Achievements -------------- None Challenges ------------ None Game ------ Seed ClaymoresShrapnelBox Manual? 0 Play Time 00:20:50 Cumulative 21.4 hours Start 2024.04.07 @ 03:54:16 End 2024.04.07 @ 04:16:00 Sessions 1 Manual Loads 0 Difficulty Rogue Special Mode None Game No. 29 Rogue 29 Adventurer 0 Explorer 0 Win Type - Total 0 Types 0/0/0/0/0/0/0/0/0 Lore% 13 Gallery% 26 Achievement% 23 Wizard Run 0 Options --------- Layout 1 ASCII 0 Keyboard 0 Movement Numpad Keybinds 0 Fullscreen 1 Font 24/Crisp Map View 50x35 Zoom Use 0% Tactical HUD 1 Map Filters NONE Filters NONE Steam 1 RUN: ad935993-7687-4363-959b-3beda3e89637